fUST/lending_fUST_20250725
["ID","MTS","AMOUNT","RATE_DAILY","PERIOD"]
[374822910,1753451440370,-460.0,0.00019726,2]
[374822912,1753451440380,-460.0,0.00019726,2]
[374822914,1753451440389,-2098.03,0.00019726,2]
[374822916,1753451440398,-460.0,0.00019726,2]
[374822918,1753451440407,-1926.34862504,0.000199,2]
[374822920,1753451440417,-2667.67817634,0.000199,2]
[374822922,1753451440426,-460.0,0.0002,2]
[374822924,1753451440439,-460.0,0.0002,2]
[374822926,1753451440450,-460.0,0.0002,2]
[374822928,1753451440459,-460.0,0.0002,2]
[374822930,1753451440469,-464.2059696,0.0002,2]
[374822932,1753451440478,-460.0,0.0002,2]
[374822934,1753451440488,-460.0,0.0002,2]
[374822936,1753451440498,-460.0,0.0002,2]
[374822939,1753451440508,-218.75372422,0.0002,2]
[374822940,1753451440520,-460.0,0.0002,2]
[374822943,1753451440532,-460.0,0.0002,2]
[374822945,1753451440542,-460.0,0.0002,2]
[374822946,1753451440551,-385.8182389,0.0002,2]
[374822948,1753451440561,-460.0,0.0002,2]
[374822951,1753451440571,-460.0,0.0002,2]
[374822953,1753451440580,-460.0,0.0002,2]
[374822955,1753451440589,-460.0,0.0002,2]
[374822957,1753451440599,-460.0,0.0002,2]
[374822958,1753451440609,-460.0,0.0002,2]
[374822960,1753451440619,-4986.57,0.0002,2]
[374822962,1753451440628,-989.91,0.0002,2]
[374822964,1753451440639,-460.0,0.0002,2]
[374822966,1753451440649,-1659.53,0.0002,2]
[374822968,1753451440659,-694.52,0.0002,2]
[374822970,1753451440669,-860.15,0.0002,2]
[374822972,1753451440681,-287.23818072,0.0002,2]
[374822974,1753451440691,-460.0,0.0002,2]
[374822976,1753451440701,-460.0,0.0002,2]
[374822978,1753451440711,-1712.48,0.0002,2]
[374822980,1753451440721,-460.0,0.0002,2]
[374822982,1753451440731,-460.0,0.0002,2]
[374822984,1753451440741,-565.62,0.0002,2]
[374822986,1753451440751,-2558.67,0.0002,2]
[374822988,1753451440761,-460.0,0.0002,2]
[374822990,1753451440770,-2196.36,0.0002,2]
[374822992,1753451440779,-2412.9,0.0002,2]
[374822994,1753451440788,-460.0,0.0002,2]
[374822996,1753451440798,-1466.29,0.0002,2]
[374822998,1753451440807,-2067.97,0.0002,2]
[374823000,1753451440817,-460.0,0.0002,2]
[374823002,1753451440826,-460.0,0.0002,2]
[374823004,1753451440835,-460.0,0.0002,2]
[374823006,1753451440845,-460.0,0.0002,2]
[374823008,1753451440854,-460.0,0.0002,2]
[374823010,1753451440864,-460.0,0.0002,2]
[374823012,1753451440874,-460.0,0.0002,2]
[374823014,1753451440883,-460.0,0.0002,2]
[374823016,1753451440892,-638.63,0.0002,2]
[374823018,1753451440902,-1222.3,0.0002,2]
[374823020,1753451440911,-460.0,0.0002,2]
[374823022,1753451440920,-460.0,0.0002,2]
[374823024,1753451440930,-1635.82,0.0002,2]
[374823026,1753451440941,-1300.64,0.0002,2]
[374823028,1753451440950,-460.0,0.0002,2]
[374823030,1753451440959,-460.0,0.0002,2]
[374823032,1753451440969,-460.0,0.0002,2]
[374823035,1753451440980,-460.0,0.0002,2]
[374823037,1753451440990,-460.0,0.0002,2]
[374823038,1753451441001,-460.0,0.0002,2]
[374823040,1753451441010,-460.0,0.0002,2]
[374823043,1753451441021,-2098.03,0.0002,2]
[374823045,1753451441032,-497.6,0.0002,2]
[374823047,1753451441043,-160.0,0.00020024,2]
[374823048,1753451441053,-395.425106,0.00020187,2]
[374823050,1753451441063,-438.77,0.00020217,2]
[374823052,1753451441074,-1000.0,0.00020268,2]
[374823054,1753451441083,-1500.0,0.00020268,2]
[374823057,1753451441094,-1500.0,0.00020268,2]
[374823058,1753451441103,-460.0,0.00020273,2]
[374823060,1753451441113,-460.0,0.00020273,2]
[374823063,1753451441122,-460.0,0.00020273,2]
[374823065,1753451441133,-460.0,0.00020273,2]
[374823067,1753451441142,-460.0,0.00020273,2]
[374823069,1753451441151,-460.0,0.00020273,2]
[374823070,1753451441161,-460.0,0.00020273,2]
[374823072,1753451441171,-460.0,0.00020273,2]
[374823074,1753451441180,-460.0,0.00020273,2]
[374823076,1753451441189,-460.0,0.00020273,2]
[374823078,1753451441199,-460.0,0.00020273,2]
[374823080,1753451441208,-460.0,0.00020273,2]
[374823082,1753451441220,-460.0,0.00020273,2]
[374823084,1753451441230,-539.26552541,0.00020273,2]
[374823086,1753451441240,-460.0,0.00020273,2]
[374823088,1753451441250,-4986.57,0.00020273,2]
[374823090,1753451441260,-989.91,0.00020273,2]
[374823092,1753451441269,-460.0,0.00020273,2]
[374823094,1753451441279,-1659.53,0.00020273,2]
[374823096,1753451441291,-694.52,0.00020273,2]
[374823098,1753451441300,-860.15,0.00020273,2]
[374823100,1753451441310,-336.1782147,0.00020273,2]
[374823102,1753451441319,-460.0,0.00020273,2]
[374823104,1753451441329,-1712.48,0.00020273,2]
[374823106,1753451441338,-460.0,0.00020273,2]
[374823108,1753451441347,-460.0,0.00020273,2]
[374823110,1753451441356,-565.62,0.00020273,2]
[374823112,1753451441366,-2558.67,0.00020273,2]
[374823114,1753451441376,-460.0,0.00020273,2]
[374823116,1753451441385,-2196.36,0.00020273,2]
[374823118,1753451441394,-2412.9,0.00020273,2]
[374823120,1753451441403,-460.0,0.00020273,2]
[374823122,1753451441412,-1466.29,0.00020273,2]
[374823124,1753451441422,-2067.97,0.00020273,2]
[374823126,1753451441431,-460.0,0.00020273,2]
[374823128,1753451441440,-460.0,0.00020273,2]
[374823130,1753451441450,-460.0,0.00020273,2]
[374823132,1753451441459,-460.0,0.00020273,2]
[374823134,1753451441470,-460.0,0.00020273,2]
[374823136,1753451441479,-460.0,0.00020273,2]
[374823138,1753451441489,-282.56302926,0.00020273,2]
[374823140,1753451441498,-460.0,0.00020273,2]
[374823142,1753451441507,-638.63,0.00020273,2]
[374823144,1753451441516,-1222.3,0.00020273,2]
[374823146,1753451441526,-460.0,0.00020273,2]
[374823148,1753451441539,-460.0,0.00020273,2]
[374823150,1753451441548,-1635.82,0.00020273,2]
[374823152,1753451441558,-1300.64,0.00020273,2]
[374823154,1753451441569,-460.0,0.00020273,2]
[374823156,1753451441579,-460.0,0.00020273,2]
[374823158,1753451441588,-460.0,0.00020273,2]
[374823160,1753451441597,-460.0,0.00020273,2]
[374823162,1753451441607,-460.0,0.00020273,2]
[374823163,1753451441618,-460.0,0.00020273,2]
[374823165,1753451441628,-460.0,0.00020273,2]
[374823167,1753451441638,-2098.03,0.00020273,2]
[374823169,1753451441648,-500.0,0.00020427,2]
[374823171,1753451441658,-833.44,0.00020538,3]
[374823173,1753451441669,-416.72,0.00020538,3]
[374823175,1753451441678,-460.0,0.00020547,2]
[374823177,1753451441687,-460.0,0.00020547,2]
[374823179,1753451441696,-460.0,0.00020547,2]
[374823181,1753451441706,-460.0,0.00020547,2]
[374823184,1753451441716,-460.0,0.00020547,2]
[374823186,1753451441728,-460.0,0.00020547,2]
[374823188,1753451441737,-460.0,0.00020547,2]
[374823190,1753451441747,-460.0,0.00020547,2]
[374823192,1753451441757,-460.0,0.00020547,2]
[374823194,1753451441766,-460.0,0.00020547,2]
[374823195,1753451441776,-460.0,0.00020547,2]
[374823198,1753451441786,-460.0,0.00020547,2]
[374823200,1753451441795,-460.0,0.00020547,2]
[374823201,1753451441804,-4986.57,0.00020547,2]
[374823203,1753451441814,-989.91,0.00020547,2]
[374823205,1753451441823,-460.0,0.00020547,2]
[374823207,1753451441833,-1659.53,0.00020547,2]
[374823209,1753451441842,-694.52,0.00020547,2]
[374823211,1753451441852,-860.15,0.00020547,2]
[374823213,1753451441862,-460.0,0.00020547,2]
[374823216,1753451441871,-1712.48,0.00020547,2]
[374823218,1753451441880,-460.0,0.00020547,2]
[374823219,1753451441889,-460.0,0.00020547,2]
[374823221,1753451441899,-565.62,0.00020547,2]
[374823223,1753451441908,-2558.67,0.00020547,2]
[374823225,1753451441918,-460.0,0.00020547,2]
[374823228,1753451441928,-2196.36,0.00020547,2]
[374823230,1753451441937,-2412.9,0.00020547,2]
[374823231,1753451441947,-460.0,0.00020547,2]
[374823234,1753451441956,-1466.29,0.00020547,2]
[374823235,1753451441966,-2067.97,0.00020547,2]
[374823237,1753451441977,-460.0,0.00020547,2]
[374823240,1753451441987,-460.0,0.00020547,2]
[374823241,1753451441996,-460.0,0.00020547,2]
[374823243,1753451442005,-460.0,0.00020547,2]
[374823245,1753451442015,-460.0,0.00020547,2]
[374823247,1753451442024,-460.0,0.00020547,2]
[374823249,1753451442033,-460.0,0.00020547,2]
[374823251,1753451442043,-638.63,0.00020547,2]
[374823254,1753451442052,-1222.3,0.00020547,2]
[374823255,1753451442062,-460.0,0.00020547,2]
[374823258,1753451442071,-1635.82,0.00020547,2]
[374823259,1753451442081,-1300.64,0.00020547,2]
[374823261,1753451442090,-460.0,0.00020547,2]
[374823263,1753451442100,-460.0,0.00020547,2]
[374823265,1753451442109,-460.0,0.00020547,2]
[374823267,1753451442122,-460.0,0.00020547,2]
[374823269,1753451442131,-460.0,0.00020547,2]
[374823271,1753451442141,-460.0,0.00020547,2]
[374823273,1753451442150,-460.0,0.00020547,2]
[374823275,1753451442159,-2098.03,0.00020547,2]
[374823288,1753451442267,-260.0,0.00020572,2]
[374823290,1753451442277,-840.4016166,0.00020573,2]
[374823291,1753451442287,-160.0,0.00020573,2]
[374823294,1753451442296,-476.88235691,0.00020573,2]
[374823295,1753451442306,-215.93003454,0.00020573,2]
[374823297,1753451442316,-800.0,0.00020607,2]
[374823299,1753451442326,-274.2,0.00020642,3]
[374823301,1753451442335,-600.54749216,0.000207,4]
[374823302,1753451442345,-587.0,0.00020724,2]
[374823303,1753451442354,-1189.56,0.00020812,3]
[374823304,1753451442363,-594.78,0.00020812,3]
[374823305,1753451442372,-2000.0,0.00020816,2]
[374823307,1753451442381,-2000.0,0.00020816,2]
[374823308,1753451442390,-460.0,0.00020821,2]
[374823309,1753451442399,-460.0,0.00020821,2]
[374823310,1753451442408,-460.0,0.00020821,2]
[374823311,1753451442417,-460.0,0.00020821,2]
[374823312,1753451442426,-460.0,0.00020821,2]
[374823313,1753451442435,-316.72,0.00020821,2]
[374823314,1753451442444,-460.0,0.00020821,2]
[374823315,1753451442454,-460.0,0.00020821,2]
[374823316,1753451442463,-460.0,0.00020821,2]
[374823317,1753451442473,-460.0,0.00020821,2]
[374823318,1753451442482,-460.0,0.00020821,2]
[374823319,1753451442494,-460.0,0.00020821,2]
[374823320,1753451442502,-4986.57,0.00020821,2]
[374823321,1753451442511,-989.91,0.00020821,2]
[374823322,1753451442521,-460.0,0.00020821,2]
[374823324,1753451442532,-1659.53,0.00020821,2]
[374823326,1753451442542,-694.52,0.00020821,2]
[374823329,1753451442551,-860.15,0.00020821,2]
[374823330,1753451442560,-460.0,0.00020821,2]
[374823331,1753451442571,-1712.48,0.00020821,2]
[374823332,1753451442580,-460.0,0.00020821,2]
[374823333,1753451442589,-460.0,0.00020821,2]
[374823334,1753451442599,-565.62,0.00020821,2]
[374823335,1753451442609,-2558.67,0.00020821,2]
[374823336,1753451442620,-460.0,0.00020821,2]
[374823337,1753451442629,-2196.36,0.00020821,2]
[374823338,1753451442638,-2412.9,0.00020821,2]
[374823339,1753451442647,-460.0,0.00020821,2]
[374823340,1753451442656,-1466.29,0.00020821,2]
[374823341,1753451442665,-2067.97,0.00020821,2]
[374823342,1753451442675,-460.0,0.00020821,2]
[374823343,1753451442684,-460.0,0.00020821,2]
[374823344,1753451442694,-460.0,0.00020821,2]
[374823346,1753451442704,-460.0,0.00020821,2]
[374823348,1753451442713,-460.0,0.00020821,2]
[374823350,1753451442723,-460.0,0.00020821,2]
[374823352,1753451442733,-460.0,0.00020821,2]
[374823354,1753451442743,-638.63,0.00020821,2]
[374823356,1753451442752,-1222.3,0.00020821,2]
[374823358,1753451442761,-460.0,0.00020821,2]
[374823360,1753451442771,-1635.82,0.00020821,2]
[374823362,1753451442780,-1300.64,0.00020821,2]
[374823364,1753451442789,-460.0,0.00020821,2]
[374823366,1753451442798,-460.0,0.00020821,2]
[374823368,1753451442807,-460.0,0.00020821,2]
[374823370,1753451442817,-460.0,0.00020821,2]
[374823372,1753451442827,-460.0,0.00020821,2]
[374823374,1753451442836,-2098.03,0.00020821,2]
[374823376,1753451442846,-460.0,0.00020821,2]
[374823378,1753451442855,-1068.64646337,0.00020975,2]
[374823380,1753451442865,-2667.67817631,0.00021064,2]
[374823382,1753451442874,-460.0,0.00021095,2]
[374823384,1753451442884,-460.0,0.00021095,2]
[374823386,1753451442894,-460.0,0.00021095,2]
[374823388,1753451442903,-460.0,0.00021095,2]
[374823390,1753451442912,-460.0,0.00021095,2]
[374823392,1753451442923,-460.0,0.00021095,2]
[374823394,1753451442934,-605.94772476,0.00021095,2]
[374823396,1753451442943,-460.0,0.00021095,2]
[374823398,1753451442952,-460.0,0.00021095,2]
[374823400,1753451442962,-4986.57,0.00021095,2]
[374823402,1753451442972,-989.91,0.00021095,2]
[374823404,1753451442981,-460.0,0.00021095,2]
[374823405,1753451442990,-1659.53,0.00021095,2]
[374823407,1753451443000,-694.52,0.00021095,2]
[374823409,1753451443009,-860.15,0.00021095,2]
[374823411,1753451443019,-460.0,0.00021095,2]
[374823414,1753451443028,-1712.48,0.00021095,2]
[374823416,1753451443038,-460.0,0.00021095,2]
[374823417,1753451443047,-460.0,0.00021095,2]
[374823419,1753451443057,-565.62,0.00021095,2]
[374823422,1753451443066,-2558.67,0.00021095,2]
[374823423,1753451443076,-426.49,0.00021095,2]
[374823425,1753451443086,-2196.36,0.00021095,2]
[374823427,1753451443095,-2412.9,0.00021095,2]
[374823429,1753451443105,-460.0,0.00021095,2]
[374823431,1753451443114,-1466.29,0.00021095,2]
[374823434,1753451443124,-2067.97,0.00021095,2]
[374823435,1753451443133,-460.0,0.00021095,2]
[374823437,1753451443143,-460.0,0.00021095,2]
[374823439,1753451443152,-460.0,0.00021095,2]
[374823441,1753451443163,-460.0,0.00021095,2]
[374823443,1753451443173,-460.0,0.00021095,2]
[374823445,1753451443183,-638.63,0.00021095,2]
[374823447,1753451443193,-1222.3,0.00021095,2]
[374823449,1753451443202,-460.0,0.00021095,2]
[374823451,1753451443212,-1635.82,0.00021095,2]
[374823453,1753451443223,-1300.64,0.00021095,2]
[374823456,1753451443233,-460.0,0.00021095,2]
[374823459,1753451443242,-460.0,0.00021095,2]
[374823462,1753451443252,-460.0,0.00021095,2]
[374823465,1753451443262,-460.0,0.00021095,2]
[374823468,1753451443271,-460.0,0.00021095,2]
[374823471,1753451443280,-460.0,0.00021095,2]
[374823473,1753451443289,-2098.03,0.00021095,2]
[374823475,1753451443300,-360.0,0.0002112,2]
[374823478,1753451443309,-274.2,0.00021137,4]
[374823481,1753451443319,-404.904,0.00021243,2]
[374823483,1753451443328,-2500.0,0.00021364,2]
[374823486,1753451443338,-2500.0,0.00021364,2]
[374823488,1753451443347,-460.0,0.00021369,2]
[374823490,1753451443357,-460.0,0.00021369,2]
[374823492,1753451443366,-460.0,0.00021369,2]
[374823494,1753451443376,-460.0,0.00021369,2]
[374823496,1753451443386,-460.0,0.00021369,2]
[374823498,1753451443396,-460.0,0.00021369,2]
[374823500,1753451443406,-460.0,0.00021369,2]
[374823502,1753451443415,-4986.57,0.00021369,2]
[374823504,1753451443424,-989.91,0.00021369,2]
[374823506,1753451443433,-460.0,0.00021369,2]
[374823508,1753451443442,-1659.53,0.00021369,2]
[374823510,1753451443451,-694.52,0.00021369,2]
[374823512,1753451443460,-860.15,0.00021369,2]
[374823514,1753451443470,-460.0,0.00021369,2]
[374823516,1753451443480,-1712.48,0.00021369,2]
[374823518,1753451443489,-460.0,0.00021369,2]
[374823520,1753451443498,-460.0,0.00021369,2]
[374823522,1753451443507,-565.62,0.00021369,2]
[374823524,1753451443520,-2558.67,0.00021369,2]
[374823526,1753451443532,-2196.36,0.00021369,2]
[374823528,1753451443542,-2412.9,0.00021369,2]
[374823530,1753451443551,-460.0,0.00021369,2]
[374823532,1753451443561,-1466.29,0.00021369,2]
[374823534,1753451443571,-2067.97,0.00021369,2]
[374823536,1753451443581,-460.0,0.00021369,2]
[374823538,1753451443590,-460.0,0.00021369,2]
[374823540,1753451443600,-460.0,0.00021369,2]
[374823542,1753451443611,-460.0,0.00021369,2]
[374823544,1753451443620,-460.0,0.00021369,2]
[374823546,1753451443629,-638.63,0.00021369,2]
[374823548,1753451443638,-1222.3,0.00021369,2]
[374823550,1753451443648,-1635.82,0.00021369,2]
[374823552,1753451443658,-1300.64,0.00021369,2]
[374823554,1753451443667,-460.0,0.00021369,2]
[374823556,1753451443676,-460.0,0.00021369,2]
[374823558,1753451443686,-191.08,0.00021369,2]
[374823560,1753451443695,-512.38,0.00021369,2]
[374823562,1753451443704,-460.0,0.00021369,2]
[374823563,1753451443713,-2098.03,0.00021369,2]
[374823565,1753451443725,-151.0,0.000215,4]
[374823568,1753451443735,-472.58471755,0.00021606,2]
[374823569,1753451443744,-274.2,0.00021632,4]
[374823571,1753451443754,-460.0,0.00021643,2]
[374823573,1753451443764,-460.0,0.00021643,2]
[374823575,1753451443773,-460.0,0.00021643,2]
[374823577,1753451443783,-158.27,0.00021643,2]
[374823579,1753451443792,-460.0,0.00021643,2]
[374823581,1753451443802,-460.0,0.00021643,2]
[374823583,1753451443811,-4986.57,0.00021643,2]
[374823585,1753451443821,-989.91,0.00021643,2]
[374823587,1753451443830,-170.32,0.00021643,2]
[374823590,1753451443840,-1659.53,0.00021643,2]
[374823591,1753451443849,-694.52,0.00021643,2]
[374823593,1753451443858,-860.15,0.00021643,2]
[374823595,1753451443868,-460.0,0.00021643,2]
[374823598,1753451443878,-1712.48,0.00021643,2]
[374823601,1753451443887,-460.0,0.00021643,2]
[374823603,1753451443897,-565.62,0.00021643,2]
[374823605,1753451443906,-2558.67,0.00021643,2]
[374823607,1753451443916,-2196.36,0.00021643,2]
[374823609,1753451443925,-2412.9,0.00021643,2]
[374823611,1753451443935,-460.0,0.00021643,2]
[374823613,1753451443944,-1466.29,0.00021643,2]
[374823615,1753451443953,-2067.97,0.00021643,2]
[374823617,1753451443963,-516.43,0.00021643,2]
[374823620,1753451443975,-460.0,0.00021643,2]
[374823621,1753451443984,-460.0,0.00021643,2]
[374823623,1753451443993,-460.0,0.00021643,2]
[374823625,1753451444004,-258.44214248,0.00021643,2]
[374823627,1753451444014,-638.63,0.00021643,2]
[374823629,1753451444022,-1222.3,0.00021643,2]
[374823631,1753451444031,-1635.82,0.00021643,2]
[374823633,1753451444040,-1300.64,0.00021643,2]
[374823635,1753451444051,-460.0,0.00021643,2]
[374823637,1753451444060,-460.0,0.00021643,2]
[374823639,1753451444069,-460.0,0.00021643,2]
[374823641,1753451444079,-2098.03,0.00021643,2]
[374823643,1753451444089,-460.0,0.00021668,2]
[374823645,1753451444099,-500.0,0.00021673,2]
[374823647,1753451444108,-164.24585049,0.00021673,2]
[374823649,1753451444118,-500.0,0.00021673,2]
[374823651,1753451444127,-500.0,0.00021673,2]
[374823653,1753451444136,-500.0,0.00021673,2]
[374823655,1753451444146,-500.91301163,0.00021673,2]
[374823657,1753451444155,-500.55543963,0.00021673,2]
[374823659,1753451444164,-500.0,0.00021673,2]
[374823661,1753451444174,-500.0,0.00021673,2]
[374823663,1753451444183,-500.0,0.00021673,2]
[374823665,1753451444192,-500.0,0.00021673,2]
[374823667,1753451444202,-500.0,0.00021673,2]
[374823669,1753451444212,-274.4842035,0.00021673,2]
[374823671,1753451444223,-500.0,0.00021673,2]
[374823673,1753451444233,-500.0,0.00021673,2]
[374823675,1753451444242,-500.37542207,0.00021673,2]
[374823677,1753451444252,-500.0,0.00021673,2]
[374823679,1753451444263,-336.94770817,0.00021673,2]
[374823680,1753451444273,-500.0,0.00021673,2]
[374823682,1753451444284,-500.0,0.00021673,2]
[374823684,1753451444294,-500.0,0.00021673,2]
[374823686,1753451444307,-500.0,0.00021673,2]
[374823688,1753451444317,-626.30752255,0.00021673,2]
[374823701,1753451444426,-500.0,0.00021673,2]
[374823703,1753451444436,-500.0,0.00021673,2]
[374823705,1753451444446,-500.43649988,0.00021673,2]
[374823707,1753451444455,-500.0,0.00021673,2]
[374823708,1753451444465,-500.0,0.00021673,2]
[374823711,1753451444477,-500.0,0.00021673,2]
[374823713,1753451444487,-174.76956251,0.00021673,2]
[374823714,1753451444496,-630.13669362,0.00021673,2]
[374823716,1753451444506,-500.0,0.00021673,2]
[374823719,1753451444516,-501.11919719,0.00021673,2]
[374823720,1753451444527,-280.33080621,0.00021673,2]
[374823722,1753451444538,-500.0,0.00021673,2]
[374823724,1753451444547,-500.0,0.00021673,2]
[374823726,1753451444557,-500.0,0.00021673,2]
[374823729,1753451444567,-500.0,0.00021673,2]
[374823730,1753451444576,-500.0,0.00021673,2]
[374823732,1753451444586,-500.0,0.00021673,2]
[374823735,1753451444596,-500.0,0.00021673,2]
[374823736,1753451444607,-500.0,0.00021673,2]
[374823738,1753451444617,-500.0,0.00021673,2]
[374823740,1753451444626,-500.0,0.00021673,2]
[374823742,1753451444636,-151.0,0.00021698,2]
[374823745,1753451444645,-151.0,0.00021698,2]
[374823747,1753451444655,-151.0,0.00021698,2]
[374823748,1753451444664,-215.0738,0.00021698,2]
[374823750,1753451444674,-151.0,0.00021698,2]
[374823752,1753451444683,-151.0,0.00021698,2]
[374823754,1753451444693,-151.0,0.00021698,2]
[374823756,1753451444703,-151.0,0.00021698,2]
[374823758,1753451444713,-151.0,0.00021698,2]
[374823760,1753451444724,-500.0,0.00021698,2]
[374823763,1753451444733,-151.0,0.00021698,2]
[374823765,1753451444743,-151.0,0.00021698,2]
[374823767,1753451444753,-151.0,0.00021698,2]
[374823768,1753451444762,-151.0,0.00021698,2]
[374823770,1753451444772,-500.0,0.00021698,2]
[374823773,1753451444782,-151.0,0.00021698,2]
[374823774,1753451444792,-3801.642,0.00021698,2]
[374823776,1753451444802,-151.0,0.00021698,2]
[374823779,1753451444811,-500.0,0.00021698,2]
[374823781,1753451444821,-151.0,0.00021698,2]
[374823783,1753451444831,-151.0,0.00021698,2]
[374823785,1753451444840,-500.0,0.00021698,2]
[374823788,1753451444858,-151.0,0.00021698,2]
[374823790,1753451444870,-500.0,0.00021698,2]
[374823792,1753451444880,-151.0,0.00021698,2]
[374823794,1753451444890,-500.0,0.00021698,2]
[374823796,1753451444900,-151.0,0.00021698,2]
[374823798,1753451444909,-151.0,0.00021698,2]
[374823800,1753451444919,-500.0,0.00021698,2]
[374823802,1753451444929,-151.0,0.00021698,2]
[374823804,1753451444938,-151.0,0.00021698,2]
[374823806,1753451444948,-151.0,0.00021698,2]
[374823808,1753451444958,-151.0,0.00021698,2]
[374823810,1753451444967,-151.0,0.00021698,2]
[374823812,1753451444979,-151.0,0.00021698,2]
[374823814,1753451444988,-500.0,0.00021698,2]
[374823816,1753451444998,-151.0,0.00021698,2]
[374823818,1753451445009,-500.0,0.00021698,2]
[374823820,1753451445018,-151.0,0.00021698,2]
[374823822,1753451445028,-151.0,0.00021698,2]
[374823823,1753451445038,-151.0,0.00021698,2]
[374823824,1753451445048,-151.0,0.00021698,2]
[374823825,1753451445058,-151.0,0.00021698,2]
[374823826,1753451445067,-151.0,0.00021698,2]
[374823827,1753451445078,-151.0,0.00021698,2]
[374823828,1753451445088,-151.0,0.00021698,2]
[374823829,1753451445097,-151.0,0.00021698,2]
[374823830,1753451445107,-151.0,0.00021698,2]
[374823831,1753451445117,-151.0,0.00021698,2]
[374823833,1753451445127,-151.0,0.00021698,2]
[374823835,1753451445137,-500.0,0.00021698,2]
[374823837,1753451445147,-151.0,0.00021698,2]
[374823839,1753451445157,-151.0,0.00021698,2]
[374823841,1753451445166,-500.0,0.00021698,2]
[374823843,1753451445176,-151.0,0.00021698,2]
[374823845,1753451445186,-151.0,0.00021698,2]
[374823847,1753451445196,-500.0,0.00021698,2]
[374823849,1753451445206,-151.0,0.00021698,2]
[374823852,1753451445215,-500.0,0.00021698,2]
[374823854,1753451445226,-151.0,0.00021698,2]
[374823856,1753451445236,-500.0,0.00021698,2]
[374823858,1753451445246,-151.0,0.00021698,2]
[374823860,1753451445255,-151.0,0.00021698,2]
[374823862,1753451445265,-500.0,0.00021698,2]
[374823864,1753451445275,-151.0,0.00021698,2]
[374823866,1753451445285,-151.0,0.00021698,2]
[374823868,1753451445295,-500.0,0.00021698,2]
[374823870,1753451445304,-151.0,0.00021698,2]
[374823872,1753451445314,-151.0,0.00021698,2]
[374823874,1753451445325,-501.72535751,0.00021698,2]
[374823876,1753451445334,-151.0,0.00021698,2]
[374823878,1753451445344,-151.0,0.00021698,2]
[374823880,1753451445354,-151.0,0.00021698,2]
[374823882,1753451445364,-151.0,0.00021698,2]
[374823884,1753451445374,-25000.0,0.00021698,2]
[374823886,1753451445383,-151.0,0.00021698,2]
[374823888,1753451445394,-176.40109688,0.00021698,2]
[374823891,1753451445403,-151.0,0.00021698,2]
[374823894,1753451445413,-151.0,0.00021698,2]
[374823898,1753451445434,-7237.33451009,0.00021698,2]
[374823901,1753451445451,-151.0,0.00021698,2]